bitfinex-derivatives/quotes_BTCF0:USTF0_20260119
["timestamp","ask_amount","ask_price","bid_price","bid_amount"]
[1768865604206,0.09831434,92742.0,92714.0,0.010792]
[1768865604207,0.01079,92731.0,92714.0,0.010792]
[1768865604408,0.09831434,92733.0,92721.0,0.010791]
[1768865604716,0.010791,92730.0,92715.0,0.09712]
[1768865604909,0.10910434,92733.0,92719.0,0.010792]
[1768865605211,0.09712,92747.0,92715.0,0.09712]
[1768865605212,0.09831434,92741.0,92715.0,0.09712]
[1768865605415,0.01079,92733.0,92719.0,0.010792]
[1768865606808,0.09831434,92733.0,92716.0,0.09712]
[1768865607708,0.010791,92723.0,92710.0,0.010793]
[1768865607914,0.010791,92723.0,92710.0,0.09712]
[1768865608504,0.010791,92726.0,92710.0,0.09712]
[1768865609111,0.010791,92729.0,92712.0,0.010793]
[1768865609304,0.010791,92729.0,92708.0,0.03262791]
[1768865609706,0.010791,92729.0,92714.0,0.010792]
[1768865609916,0.010791,92727.0,92708.0,0.03262791]
[1768865610417,0.10755252,92734.0,92708.0,0.03262791]
[1768865610607,0.010791,92724.0,92708.0,0.03262791]
[1768865610811,0.010791,92724.0,92708.0,0.02339879]
[1768865611011,0.010791,92724.0,92710.0,0.010793]
[1768865611209,0.010791,92728.0,92708.0,0.02339879]
[1768865611412,0.010791,92725.0,92710.0,0.010793]
[1768865611717,0.09831434,92728.0,92707.0,0.107913]
[1768865612118,0.010791,92724.0,92709.0,0.010793]
[1768865612307,0.010791,92727.0,92711.0,0.010793]
[1768865612906,0.010791,92727.0,92707.0,0.13578469]
[1768865613112,0.08731434,92728.0,92715.0,0.010792]
[1768865613815,0.01079,92733.0,92715.0,0.00922912]
[1768865614019,0.09712,92736.0,92715.0,0.04407614]
[1768865614216,0.10755252,92733.0,92711.0,0.010793]
[1768865614411,0.09831434,92731.0,92711.0,0.010793]
[1768865614608,0.010791,92730.0,92714.0,0.010792]
[1768865615319,0.01079,92733.0,92711.0,0.04789381]
[1768865615524,0.01079,92733.0,92713.0,0.00922912]
[1768865616825,0.01079,92733.0,92719.0,0.010792]
[1768865617128,0.09712,92736.0,92719.0,0.04390094]
[1768865617323,0.09712,92736.0,92725.0,0.010791]
[1768865617520,0.01079,92738.0,92723.0,0.010791]
[1768865617727,0.01079,92738.0,92725.0,0.010791]
[1768865617919,0.09712,92743.0,92733.0,0.01079]
[1768865618216,0.09831434,92754.0,92721.0,0.04945669]
[1768865618217,0.010788,92750.0,92735.0,0.01079]
[1768865618809,0.09712,92751.0,92737.0,0.01079]
[1768865619009,0.09831434,92754.0,92742.0,0.010789]
[1768865619215,0.09712,92756.0,92742.0,0.010789]
[1768865619811,0.010786,92767.0,92750.0,0.00922912]
[1768865620011,0.010787,92764.0,92750.0,0.03468162]
[1768865620216,0.010787,92764.0,92747.0,0.03866469]
[1768865620418,0.010787,92762.0,92747.0,0.03866469]
[1768865622028,0.09831434,92768.0,92748.0,0.010788]
[1768865622929,0.010787,92764.0,92748.0,0.010788]
[1768865623430,0.010786,92767.0,92748.0,0.010788]
[1768865623729,0.010787,92764.0,92747.0,0.010789]
[1768865623929,0.010787,92759.0,92746.0,0.03866469]
[1768865624124,0.010787,92759.0,92745.0,0.010789]
[1768865624125,0.09211487,92759.0,92741.0,0.05796564]
[1768865624330,0.10163397,92752.0,92737.0,0.09712]
[1768865624533,0.010788,92754.0,92738.0,0.01079]
[1768865624829,0.010788,92754.0,92735.0,0.01079]
[1768865625218,0.010788,92753.0,92737.0,0.01079]
[1768865625618,0.010788,92753.0,92734.0,0.01079]
[1768865626232,0.010788,92751.0,92734.0,0.01079]
[1768865626420,0.010788,92754.0,92736.0,0.01079]
[1768865626731,0.010788,92752.0,92736.0,0.01079]
[1768865626932,0.010788,92756.0,92733.0,0.09712]
[1768865627121,0.010788,92754.0,92737.0,0.01079]
[1768865627322,0.010788,92754.0,92739.0,0.010789]
[1768865627631,0.010788,92755.0,92735.0,0.01079]
[1768865627930,0.010788,92751.0,92735.0,0.01079]
[1768865628722,0.010789,92743.0,92728.0,0.010791]
[1768865628922,0.010789,92743.0,92730.0,0.09712]
[1768865629529,0.10290387,92746.0,92730.0,0.09712]
[1768865629727,0.09211487,92746.0,92730.0,0.09712]
[1768865629926,0.010788,92749.0,92732.0,0.01079]
[1768865630122,0.09712,92750.0,92737.0,0.01079]
[1768865630324,0.09712,92750.0,92738.0,0.00966573]
[1768865630835,0.010789,92746.0,92731.0,0.00966573]
[1768865631133,0.010789,92746.0,92730.0,0.19018359]
[1768865631333,0.010789,92746.0,92730.0,0.09306359]
[1768865631532,0.010789,92746.0,92730.0,0.19018359]
[1768865631929,0.010788,92749.0,92730.0,0.17939359]
[1768865632635,0.010788,92749.0,92734.0,0.01079]
[1768865632837,0.010788,92749.0,92731.0,0.01079]
[1768865633034,0.010789,92747.0,92731.0,0.01079]
[1768865633539,0.010789,92747.0,92733.0,0.01079]
[1768865633732,0.010788,92750.0,92730.0,0.17939359]
[1768865634129,0.1066391,92755.0,92736.0,0.01079]
[1768865634130,0.010788,92751.0,92736.0,0.01079]
[1768865634534,0.010789,92747.0,92732.0,0.01079]
[1768865635036,0.010789,92747.0,92730.0,0.17939359]
[1768865635438,0.09003938,92754.0,92730.0,0.17939359]
[1768865635639,0.09003938,92754.0,92730.0,0.18841798]
[1768865637142,0.09939096,92754.0,92730.0,0.18841798]
[1768865637441,0.010789,92746.0,92732.0,0.01079]
[1768865638345,0.09939096,92751.0,92730.0,0.09712]
[1768865638841,0.010789,92741.0,92730.0,0.09712]
[1768865639232,0.09003938,92751.0,92734.0,0.01079]
[1768865640145,0.09712,92755.0,92731.0,0.00902439]
[1768865640351,0.09712,92755.0,92730.0,0.40660552]
[1768865640352,0.09712,92755.0,92743.0,0.010789]
[1768865641051,0.18715938,92755.0,92730.0,0.39101731]
[1768865641248,0.010789,92747.0,92730.0,0.15508564]
[1768865641451,0.010788,92750.0,92730.0,0.15508564]
[1768865641648,0.010788,92753.0,92739.0,0.010789]
[1768865641840,0.09712,92755.0,92739.0,0.010789]
[1768865642045,0.09712,92755.0,92741.0,0.010789]
[1768865642241,0.09712,92755.0,92730.0,0.39278292]
[1768865642242,0.09712,92755.0,92738.0,0.00902439]
[1768865642446,0.09003938,92773.0,92753.0,0.010788]
[1768865642657,0.09712,92772.0,92750.0,0.00902439]
[1768865642848,0.010786,92766.0,92749.0,0.010788]
[1768865643155,0.10082538,92766.0,92749.0,0.010788]
[1768865643356,0.010787,92764.0,92749.0,0.010788]
[1768865644154,0.09003938,92766.0,92751.0,0.010788]
[1768865644656,0.18715938,92772.0,92758.0,0.010787]
[1768865644852,0.12712,92772.0,92760.0,0.010787]
[1768865645160,0.010786,92771.0,92756.0,0.010787]
[1768865645345,0.01,92771.0,92756.0,0.010787]
[1768865645857,0.010785,92776.0,92761.0,0.010787]
[1768865646053,0.040785,92776.0,92761.0,0.010787]
[1768865646259,0.03,92776.0,92761.0,0.010787]
[1768865647146,0.03,92776.0,92757.0,0.00902439]
[1768865647948,0.03,92776.0,92766.0,0.010786]
[1768865648148,0.010784,92785.0,92770.0,0.010786]
[1768865648355,0.040784,92785.0,92770.0,0.010786]
[1768865648948,0.040784,92785.0,92770.0,0.22690728]
[1768865648949,0.03,92785.0,92770.0,0.22690728]
[1768865649258,0.010783,92795.0,92779.0,0.010785]
[1768865649457,0.03,92795.0,92774.0,0.09074141]
[1768865649758,0.03,92795.0,92776.0,0.010785]
[1768865649759,0.040783,92795.0,92776.0,0.010785]
[1768865650057,0.010784,92787.0,92771.0,0.010786]
[1768865650254,0.010784,92787.0,92765.0,0.00902439]
[1768865650255,0.09003938,92785.0,92772.0,0.09708]
[1768865650560,0.010785,92779.0,92773.0,0.09708]
[1768865651159,0.010785,92782.0,92773.0,0.09708]
[1768865651653,0.10082338,92785.0,92773.0,0.09708]
[1768865651854,0.010784,92784.0,92768.0,0.010786]
[1768865652060,0.09003938,92785.0,92770.0,0.010786]
[1768865652458,0.10082338,92785.0,92770.0,0.010786]
[1768865652850,0.09003938,92785.0,92770.0,0.010786]
[1768865653051,0.02013558,92788.0,92772.0,0.010786]
[1768865653052,0.010784,92788.0,92772.0,0.010786]
[1768865653261,0.010784,92788.0,92774.0,0.010785]
[1768865653458,0.09003938,92785.0,92768.0,0.09708]
[1768865653956,0.09939096,92781.0,92762.0,0.05796564]
[1768865654259,0.0023711,92784.0,92763.0,0.09708]
[1768865654260,0.010785,92774.0,92763.0,0.09708]
[1768865654446,0.010785,92774.0,92761.0,0.09708]
[1768865654649,0.09003938,92779.0,92761.0,0.09708]
[1768865654852,0.010785,92777.0,92762.0,0.010787]
[1768865655048,0.10082538,92770.0,92754.0,0.05796564]
[1768865655355,0.010787,92763.0,92749.0,0.09708]
[1768865655752,0.010787,92758.0,92749.0,0.09708]
[1768865655950,0.010788,92752.0,92739.0,0.0825917]
[1768865656150,0.010785,92775.0,92736.0,0.10787]
[1768865656151,0.010788,92753.0,92736.0,0.10787]
[1768865656356,0.09003938,92757.0,92736.0,0.01079]
[1768865656558,0.010788,92751.0,92736.0,0.01079]
[1768865656753,0.010788,92755.0,92734.0,0.09708]
[1768865657259,0.010788,92752.0,92738.0,0.010789]
[1768865657863,0.09003938,92751.0,92735.0,0.01079]
[1768865658062,0.09003938,92751.0,92734.0,0.09708]
[1768865658063,0.09003938,92750.0,92734.0,0.09708]
[1768865658363,0.010788,92748.0,92734.0,0.09708]
[1768865658558,0.09003938,92749.0,92734.0,0.09708]
[1768865658759,0.00935158,92746.0,92722.0,0.05796564]
[1768865658967,0.010788,92749.0,92720.0,0.06875764]
[1768865658968,0.01079,92736.0,92720.0,0.06875764]
[1768865659262,0.09003938,92739.0,92719.0,0.01077262]
[1768865659446,0.09003938,92739.0,92722.0,0.010791]
[1768865659861,0.01079,92738.0,92722.0,0.010791]
[1768865660458,0.09939096,92736.0,92717.0,0.010792]
[1768865660660,0.010789,92741.0,92716.0,0.00902439]
[1768865660854,0.01079,92738.0,92718.0,0.00902439]
[1768865661163,0.11018096,92735.0,92719.0,0.010792]
[1768865661355,0.10082938,92735.0,92719.0,0.010792]
[1768865661659,0.00010963,92734.0,92719.0,0.010792]
[1768865662163,0.00010963,92734.0,92716.0,0.010792]
[1768865663159,0.00010963,92734.0,92720.0,0.010792]
[1768865663368,0.09708,92738.0,92721.0,0.09494308]
[1768865663553,0.09708,92740.0,92721.0,0.09494308]
[1768865664554,0.09708,92740.0,92725.0,0.010791]
[1768865664866,0.107869,92740.0,92722.0,0.010791]
[1768865666462,0.107869,92740.0,92724.0,0.010791]
[1768865666866,0.107869,92740.0,92723.0,0.010791]
[1768865667067,0.19812781,92740.0,92723.0,0.010791]
[1768865667562,0.19812781,92740.0,92718.0,0.010792]
[1768865667563,0.01079,92735.0,92718.0,0.010792]
[1768865668364,0.01079,92738.0,92720.0,0.010792]
[1768865668667,0.09025881,92739.0,92718.0,0.010792]
[1768865668869,0.0999216,92737.0,92718.0,0.010792]
[1768865669266,0.0999216,92730.0,92715.0,0.010792]
[1768865669572,0.0999216,92729.0,92715.0,0.010792]
[1768865669761,0.09025881,92729.0,92715.0,0.010792]
[1768865670469,0.010791,92727.0,92714.0,0.01094564]
[1768865670671,0.010791,92727.0,92712.0,0.14654668]
[1768865671064,0.09025881,92714.0,92694.0,0.09712]
[1768865671259,0.09025881,92714.0,92702.0,0.010794]
[1768865671458,0.09025881,92721.0,92707.0,0.010793]
[1768865671657,0.010792,92720.0,92704.0,0.010793]
[1768865671968,0.010792,92718.0,92701.0,0.010794]
[1768865672167,0.10105181,92713.0,92695.0,0.010795]
[1768865672358,0.10105181,92713.0,92692.0,0.010795]
[1768865672359,0.09025881,92707.0,92692.0,0.010795]
[1768865672557,0.0999216,92707.0,92692.0,0.010795]
[1768865672768,0.00966279,92719.0,92693.0,0.10006783]
[1768865672971,0.107912,92719.0,92703.0,0.010794]
[1768865673264,0.107912,92719.0,92688.0,0.00012682]
[1768865673265,0.010792,92715.0,92698.0,0.010794]
[1768865673464,0.010792,92715.0,92700.0,0.010794]
[1768865673665,0.010792,92718.0,92700.0,0.010794]
[1768865673865,0.010792,92715.0,92700.0,0.010794]
[1768865674065,0.010793,92712.0,92694.0,0.010795]
[1768865674465,0.010793,92713.0,92696.0,0.010794]
[1768865675562,0.010793,92711.0,92693.0,0.010795]
[1768865676172,0.010793,92711.0,92695.0,0.010795]
[1768865677569,0.09025881,92709.0,92692.0,0.01077375]
[1768865677776,0.00966279,92704.0,92684.0,0.09712]
[1768865678069,0.09025881,92703.0,92684.0,0.09712]
[1768865678369,0.09025881,92703.0,92688.0,0.01092182]
[1768865678574,0.09025881,92703.0,92690.0,0.010795]
[1768865678974,0.010793,92706.0,92690.0,0.010795]
[1768865679566,0.010794,92704.0,92690.0,0.010795]
[1768865679876,0.00966279,92706.0,92688.0,0.00012682]
[1768865680270,0.00966279,92704.0,92688.0,0.00012682]
[1768865680471,0.09025881,92703.0,92688.0,0.00012682]
[1768865680678,0.09025881,92701.0,92688.0,0.00012682]
[1768865681473,0.0999216,92701.0,92688.0,0.00012682]
[1768865681778,0.010794,92697.0,92688.0,0.00012682]
[1768865681978,0.00964828,92700.0,92688.0,8.2e-07]
[1768865682276,0.09919712,92694.0,92688.0,8.2e-07]
[1768865682477,0.1088454,92694.0,92688.0,8.2e-07]
[1768865682976,9.878e-05,92693.0,92688.0,8.2e-07]
[1768865683176,0.09919712,92692.0,92688.0,8.2e-07]
[1768865683377,9.878e-05,92693.0,92688.0,8.2e-07]
[1768865683978,0.09919712,92692.0,92688.0,8.2e-07]
[1768865684281,0.1088454,92687.0,92669.0,0.01317205]
[1768865684665,0.010796,92686.0,92669.0,0.01317205]
[1768865684968,9.878e-05,92693.0,92675.0,0.102774]
[1768865685281,0.010792,92716.0,92669.0,0.0134248]
[1768865685282,0.09712,92704.0,92688.0,0.010795]
[1768865685580,0.107914,92704.0,92688.0,0.010795]
[1768865685974,0.010794,92704.0,92688.0,0.010795]
[1768865686173,0.19631712,92708.0,92685.0,0.102774]
[1768865686379,0.19631712,92708.0,92686.0,0.00990157]
[1768865686579,0.107913,92708.0,92691.0,0.00990157]
[1768865686780,0.09712,92708.0,92694.0,0.010795]
[1768865687177,0.010793,92712.0,92694.0,0.010795]
[1768865687366,0.09712,92712.0,92698.0,0.010794]
[1768865687572,0.09712,92712.0,92700.0,0.010794]
[1768865687767,0.010792,92719.0,92703.0,0.010794]
[1768865687978,0.010792,92715.0,92696.0,0.00990157]
[1768865688271,0.010793,92713.0,92695.0,0.010794]
[1768865688472,0.010793,92713.0,92697.0,0.010794]
[1768865689482,0.10998912,92716.0,92697.0,0.010794]
[1768865690982,0.1196374,92716.0,92697.0,0.010794]
[1768865691879,0.1196374,92716.0,92699.0,0.010794]
[1768865692377,0.1088454,92716.0,92694.0,0.09287243]
[1768865692679,0.09919712,92716.0,92694.0,0.102774]
[1768865692879,0.09919712,92716.0,92703.0,0.010794]
[1768865693581,0.09919712,92716.0,92705.0,0.010793]
[1768865693883,0.10998912,92716.0,92701.0,0.010794]
[1768865694177,0.09919712,92716.0,92703.0,0.010794]
[1768865696080,0.09919712,92716.0,92695.0,0.00990157]
[1768865697074,0.10998912,92716.0,92702.0,0.010794]
[1768865698576,0.10998912,92716.0,92695.0,0.00990157]
[1768865698577,0.010793,92712.0,92696.0,0.010794]
[1768865698771,0.010793,92712.0,92693.0,0.05796564]
[1768865698979,0.09268008,92714.0,92698.0,0.010794]
[1768865699180,0.010792,92713.0,92698.0,0.010794]
[1768865699574,0.11317279,92713.0,92698.0,0.010794]
[1768865699885,0.11317379,92713.0,92698.0,0.010794]
[1768865700179,0.10238079,92713.0,92700.0,0.010794]
[1768865700782,0.010793,92712.0,92694.0,0.05796564]
[1768865701088,0.09268008,92709.0,92698.0,0.010794]
[1768865701475,0.09268008,92709.0,92694.0,0.05796564]
[1768865701980,0.09268008,92709.0,92699.0,0.010794]
[1768865702481,0.09268008,92699.0,92690.0,0.05796564]
[1768865702785,0.09268008,92704.0,92689.0,0.09712]
[1768865702976,0.09712,92721.0,92696.0,0.010794]
[1768865702977,0.09268008,92711.0,92696.0,0.010794]
[1768865703286,0.09268008,92711.0,92693.0,0.010795]
[1768865703788,0.09268008,92711.0,92690.0,0.009061]
[1768865704675,0.09268008,92711.0,92697.0,0.010794]
[1768865705681,0.010794,92705.0,92689.0,0.09712]
[1768865705885,0.09268008,92703.0,92689.0,0.09712]
[1768865707181,0.09268008,92703.0,92691.0,0.010795]
[1768865707385,0.09268008,92703.0,92692.0,0.010795]
[1768865707578,0.00970071,92708.0,92692.0,0.010795]
[1768865707980,0.10238079,92708.0,92692.0,0.010795]
[1768865708191,0.10238079,92708.0,92689.0,0.09712]
[1768865708486,0.09712,92717.0,92697.0,0.009061]
[1768865708681,0.09712,92717.0,92703.0,0.010794]
[1768865709284,0.010793,92712.0,92697.0,0.009061]
[1768865709492,0.09712,92717.0,92691.0,0.010795]
[1768865709682,0.010792,92716.0,92697.0,0.010794]
[1768865709880,0.107912,92717.0,92693.0,0.009061]
[1768865710087,0.09712,92717.0,92701.0,0.010794]
[1768865710285,0.09268008,92716.0,92701.0,0.010794]
[1768865711189,0.10238079,92716.0,92701.0,0.010794]
[1768865711975,0.09268008,92714.0,92701.0,0.010794]
[1768865713391,0.09268008,92714.0,92698.0,0.010794]
[1768865713589,0.10238079,92714.0,92698.0,0.010794]
[1768865714691,0.10238079,92714.0,92693.0,0.009061]
[1768865714889,0.10238079,92714.0,92701.0,0.010794]
[1768865715186,0.09268008,92710.0,92689.0,0.106181]
[1768865715389,0.10238079,92706.0,92689.0,0.09712]
[1768865715586,0.10238079,92706.0,92697.0,0.010794]
[1768865715783,0.09268008,92704.0,92689.0,0.09712]
[1768865715986,0.09268008,92704.0,92698.0,0.010794]
[1768865716188,0.09268008,92704.0,92695.0,0.010794]
[1768865716995,0.09268008,92704.0,92689.0,0.09712]
[1768865719098,0.09268008,92704.0,92692.0,0.010795]
[1768865720491,0.09761896,92696.0,92684.0,0.010796]
[1768865720692,0.09268008,92694.0,92683.0,0.010796]
[1768865720895,0.09268008,92694.0,92679.0,0.09712]
[1768865721199,0.09268008,92694.0,92685.0,0.010796]
[1768865721891,0.09268008,92694.0,92682.0,0.010796]
[1768865722094,0.09268008,92694.0,92684.0,0.010796]
[1768865722286,0.09268008,92694.0,92672.0,0.09712]
[1768865722287,0.09268008,92690.0,92672.0,0.09712]
[1768865722885,0.09268008,92690.0,92684.0,0.010796]
[1768865723094,0.010793,92705.0,92677.0,0.00981174]
[1768865723400,0.1816584,92740.0,92675.0,0.010797]
[1768865723401,0.09716,92704.0,92691.0,0.010795]
[1768865723594,0.09716,92703.0,92691.0,0.010795]
[1768865724785,0.09716,92703.0,92690.0,0.010795]
[1768865724993,0.09349976,92707.0,92690.0,0.010795]
[1768865725192,0.010794,92704.0,92690.0,0.010795]
[1768865725390,0.09349976,92702.0,92677.0,0.00981174]
[1768865725693,0.09349976,92716.0,92690.0,0.00981174]
[1768865725914,0.09349976,92714.0,92699.0,0.010794]
[1768865726098,0.09349976,92712.0,92690.0,0.00981174]
[1768865726892,0.09349976,92712.0,92688.0,0.10910127]
[1768865726893,0.09349976,92712.0,92693.0,0.02060674]
[1768865727197,0.09349976,92721.0,92701.0,0.00981174]
[1768865727504,0.19065976,92721.0,92701.0,0.00981174]
[1768865728597,0.19065976,92721.0,92709.0,0.010793]
[1768865728899,0.09349976,92721.0,92706.0,0.010793]
[1768865729197,0.09349976,92721.0,92701.0,0.00981174]
[1768865729698,0.010792,92718.0,92702.0,0.010794]
[1768865729889,0.09349976,92721.0,92696.0,0.010794]
[1768865730094,0.09349976,92721.0,92695.0,0.09716]
[1768865730095,0.09716,92723.0,92703.0,0.00981174]
[1768865730291,0.09716,92723.0,92712.0,0.010793]
[1768865730597,0.00237252,92729.0,92716.0,0.010792]
[1768865730994,0.00237252,92729.0,92708.0,0.00981174]
[1768865731200,0.00237252,92729.0,92712.0,0.010793]
[1768865731598,0.09587228,92729.0,92708.0,0.00981174]
[1768865731799,0.10666328,92729.0,92709.0,0.010793]
[1768865732200,0.09349976,92727.0,92709.0,0.010793]
[1768865732401,0.10429076,92723.0,92705.0,0.107953]
[1768865732608,0.10429176,92718.0,92705.0,0.09716]
[1768865733498,0.09349976,92718.0,92705.0,0.09716]
[1768865735102,0.00237252,92729.0,92713.0,0.010792]
[1768865735312,0.00237252,92729.0,92710.0,0.00981174]
[1768865735504,0.00237252,92729.0,92718.0,0.010792]
[1768865735505,0.09587228,92729.0,92718.0,0.010792]
[1768865735704,0.09587228,92729.0,92707.0,0.09928953]
[1768865735705,0.09587228,92729.0,92707.0,0.10910127]
[1768865735906,0.09587228,92729.0,92718.0,0.010792]
[1768865736102,0.09587228,92729.0,92715.0,0.010792]
[1768865736306,0.09587228,92729.0,92717.0,0.010792]
[1768865736509,0.09607649,92729.0,92705.0,0.09716]
[1768865736802,0.09349976,92717.0,92702.0,0.010794]
[1768865736999,0.09349976,92717.0,92697.0,0.09712]
[1768865737000,0.09370397,92717.0,92697.0,0.09712]
[1768865737196,0.09349976,92715.0,92697.0,0.09712]
[1768865737603,0.09349976,92715.0,92703.0,0.010794]
[1768865737906,0.09349976,92715.0,92688.0,0.09928953]
[1768865737907,0.09349976,92711.0,92692.0,0.010795]
[1768865738103,0.09349976,92709.0,92694.0,0.010795]
[1768865738700,0.09381353,92704.0,92687.0,0.107915]
[1768865738900,0.09381353,92704.0,92668.0,0.3886]
[1768865738901,0.09349976,92696.0,92681.0,0.010796]
[1768865739101,0.09349976,92696.0,92685.0,0.010796]
[1768865739307,0.09349976,92696.0,92687.0,0.010795]
[1768865739607,0.09381353,92703.0,92691.0,0.010795]
[1768865739801,0.09349976,92709.0,92687.0,0.00981174]
[1768865740106,0.09712,92708.0,92695.0,0.010794]
[1768865740403,0.19061976,92708.0,92687.0,0.09928953]
[1768865740609,0.19061976,92708.0,92692.0,0.010795]
[1768865740810,0.19061976,92708.0,92689.0,0.010795]
[1768865741004,0.09349976,92702.0,92686.0,0.010796]
[1768865741206,0.09381644,92702.0,92688.0,0.010795]
[1768865744410,0.04210448,92748.0,92690.0,0.19163534]
[1768865744411,0.09649251,92709.0,92690.0,0.19163534]
[1768865744604,0.09649251,92709.0,92693.0,0.010795]
[1768865744605,0.09712,92708.0,92693.0,0.010795]
[1768865744800,0.19361251,92708.0,92693.0,0.010795]
[1768865745005,0.09649251,92707.0,92693.0,0.010795]
[1768865746113,0.19361251,92707.0,92693.0,0.010795]
[1768865746310,0.09649251,92722.0,92691.0,0.09800334]
[1768865746515,0.09649251,92722.0,92682.0,0.010796]
[1768865746516,0.010792,92716.0,92700.0,0.18170869]
[1768865746809,0.09649251,92714.0,92690.0,0.00992665]
[1768865747116,0.09649251,92709.0,92693.0,0.010795]
[1768865747800,0.09649251,92707.0,92688.0,0.09712]
[1768865748115,0.09649251,92707.0,92690.0,0.18170869]
[1768865748517,0.010793,92711.0,92695.0,0.010795]
[1768865749514,0.10728551,92711.0,92695.0,0.010795]
[1768865749712,0.10728551,92711.0,92692.0,0.010795]
[1768865750917,0.09649251,92711.0,92692.0,0.010795]
[1768865751119,0.09649251,92708.0,92692.0,0.010795]
[1768865751414,0.09649251,92706.0,92690.0,0.18170869]
[1768865751609,0.09649251,92704.0,92688.0,0.09712]
[1768865751914,0.010794,92703.0,92688.0,0.09712]
[1768865752108,0.09649251,92702.0,92689.0,0.010795]
[1768865752303,0.09649251,92702.0,92690.0,0.18170869]
[1768865752508,0.09649251,92702.0,92691.0,0.010795]
[1768865753916,0.09716,92707.0,92690.0,0.18170869]
[1768865754122,0.09716,92707.0,92698.0,0.010794]
[1768865754317,0.09716,92709.0,92698.0,0.010794]
[1768865754718,0.09766081,92708.0,92691.0,0.010795]
[1768865754914,0.09766081,92708.0,92695.0,0.010795]
[1768865755116,0.09766081,92708.0,92697.0,0.010794]
[1768865755621,0.09766081,92708.0,92694.0,0.010795]
[1768865756123,0.09766081,92708.0,92697.0,0.010794]
[1768865756922,0.09766081,92708.0,92694.0,0.010795]
[1768865757323,0.09766081,92708.0,92696.0,0.010794]
[1768865757511,0.09766081,92708.0,92698.0,0.010794]
[1768865757909,0.09766081,92708.0,92694.0,0.010795]
[1768865758424,0.09766081,92708.0,92690.0,0.18170869]
[1768865759414,0.09766081,92708.0,92694.0,0.010795]
[1768865763213,0.09766081,92708.0,92695.0,0.010794]
[1768865763619,0.09766081,92708.0,92697.0,0.010794]
[1768865763821,0.09766081,92708.0,92690.0,0.23987278]
[1768865763822,0.09716,92710.0,92698.0,0.18170869]
[1768865764015,0.09716,92713.0,92698.0,0.18170869]
[1768865764228,0.09766081,92721.0,92703.0,0.18170869]
[1768865764420,0.09716,92714.0,92708.0,0.18170869]
[1768865764731,0.09716,92714.0,92702.0,0.010794]
[1768865764929,0.09716,92714.0,92704.0,0.010793]
[1768865765424,0.09716,92714.0,92708.0,0.010793]
[1768865765624,0.57872,92730.0,92700.0,0.18170869]
[1768865765625,0.09766081,92728.0,92715.0,0.010792]
[1768865765828,0.09716,92727.0,92719.0,0.18170869]
[1768865766128,0.00237252,92729.0,92719.0,0.010792]
[1768865766432,0.00237252,92729.0,92719.0,0.19250069]
[1768865766630,0.00237252,92729.0,92719.0,0.18170869]
[1768865767930,0.00237252,92729.0,92713.0,0.010792]
[1768865769326,0.00237252,92729.0,92715.0,0.010792]
[1768865770126,0.00237252,92729.0,92712.0,0.010793]
[1768865771017,0.00237252,92729.0,92714.0,0.010792]
[1768865771731,0.00237252,92729.0,92710.0,0.34609037]
[1768865771927,0.010788,92753.0,92722.0,0.09660483]
[1768865771928,0.010789,92739.0,92722.0,0.09660483]
[1768865772131,0.010789,92739.0,92729.0,0.18170869]
[1768865772824,0.09766081,92741.0,92729.0,0.18170869]
[1768865773025,0.09766081,92741.0,92721.0,0.02040376]
[1768865773727,0.01079,92738.0,92721.0,0.02040376]
[1768865774120,0.01079,92736.0,92721.0,0.02040376]
[1768865775327,0.01079,92739.0,92723.0,0.010791]
[1768865775530,0.0979677,92741.0,92720.0,0.18170869]
[1768865775726,0.0979677,92741.0,92716.0,0.00961276]
[1768865776127,0.09766081,92741.0,92730.0,0.18170869]
[1768865776327,0.00237212,92744.0,92730.0,0.18170869]
[1768865776528,0.09712,92743.0,92733.0,0.01079]
[1768865776934,0.00237212,92744.0,92733.0,0.01079]
[1768865777135,0.010789,92743.0,92730.0,0.18170869]
[1768865777329,0.00237212,92744.0,92730.0,0.18170869]
[1768865777532,0.00237212,92744.0,92730.0,0.19249869]
[1768865777733,0.010789,92743.0,92724.0,0.00961276]
[1768865777933,0.010789,92743.0,92730.0,0.18170869]
[1768865778134,0.00237212,92744.0,92730.0,0.18170869]
[1768865779347,0.00237212,92744.0,92730.0,0.19267667]
[1768865779649,0.01316112,92744.0,92730.0,0.18170869]
[1768865779852,0.00237212,92744.0,92730.0,0.18170869]
[1768865780456,0.00237212,92744.0,92730.0,0.19279047]
[1768865781048,0.00237212,92744.0,92723.0,0.00961276]
[1768865781348,0.010789,92739.0,92725.0,0.010791]
[1768865781751,0.10845081,92738.0,92723.0,0.010791]
[1768865781944,0.09766081,92734.0,92721.0,0.010791]
[1768865782151,0.09766081,92734.0,92722.0,0.010791]
[1768865783350,0.09783683,92734.0,92722.0,0.010791]
[1768865786356,0.09766081,92734.0,92720.0,0.18170869]
[1768865786660,0.00022326,92743.0,92727.0,0.010791]
[1768865786849,0.01101226,92743.0,92728.0,0.18170869]
[1768865787045,0.01101226,92743.0,92729.0,0.010791]
[1768865787354,0.01101226,92743.0,92730.0,0.01079]
[1768865787355,0.00022326,92743.0,92730.0,0.01079]
[1768865788753,0.00237212,92744.0,92731.0,0.01079]
[1768865789358,0.010789,92742.0,92728.0,0.18170869]
[1768865789654,0.01089613,92742.0,92730.0,0.18170869]
[1768865791061,0.010789,92742.0,92730.0,0.18170869]
[1768865791261,0.010789,92742.0,92728.0,0.010791]
[1768865792752,0.00237212,92744.0,92728.0,0.010791]
[1768865792753,0.01089443,92743.0,92728.0,0.010791]
[1768865792948,0.01089443,92743.0,92723.0,0.00942549]
[1768865793350,0.010789,92741.0,92724.0,0.00942549]
[1768865793560,0.00010543,92743.0,92727.0,0.010791]
[1768865794263,0.01316112,92744.0,92725.0,0.00942549]
[1768865794459,0.0906936,92742.0,92725.0,0.010791]
[1768865794659,0.00011791,92741.0,92725.0,0.010791]
[1768865794862,0.01079,92734.0,92720.0,0.02021749]
[1768865795167,0.01079,92735.0,92720.0,0.010792]
[1768865795667,0.01079,92735.0,92722.0,0.010791]
[1768865796367,0.01079,92735.0,92719.0,0.06895609]
[1768865796658,0.09723791,92736.0,92719.0,0.010792]